Department Family,Entity,Date Paid,Expense Type,Expense Area,Supplier,Transaction Number,Amount (�),Supplier VAT Registration Number
BEIS,Met Office,2023-12-07,06 ACCOMMODATION,CHIEF FINANCIAL OFFICER,Aberdeenshire Council,486484,3486,6637545408
BEIS,Met Office,2023-12-04,06 ACCOMMODATION,CHIEF FINANCIAL OFFICER,ABOVE THE REST COMMERCIAL CLEANING LTD,486222,41,166969348
BEIS,Met Office,2023-12-04,06 ACCOMMODATION,CHIEF FINANCIAL OFFICER,ABOVE THE REST COMMERCIAL CLEANING LTD,486221,565,166969348
BEIS,Met Office,2023-12-12,11 SERVICES,CHIEF FINANCIAL OFFICER,ACTIVE PEST MANAGEMENT,486696,86.1,791419116
BEIS,Met Office,2023-12-07,06 ACCOMMODATION,CHIEF FINANCIAL OFFICER,ADT FIRE AND SECURITY PLC,486437,373.11,413633086
BEIS,Met Office,2023-12-05,08 SOFTWARE LICENCES,CHIEF FINANCIAL OFFICER,ADVANCED BUSINESS SOLUTIONS LTD,486331,4180,927547983
BEIS,Met Office,2023-12-19,11 SERVICES,CHIEF FINANCIAL OFFICER,ALLSTAR BUSINESS SOLUTIONS LTD,486905,3321.14,747880191
BEIS,Met Office,2023-12-04,11 SERVICES,CHIEF FINANCIAL OFFICER,ALLSTAR BUSINESS SOLUTIONS LTD,486274,3426.37,747880191
BEIS,Met Office,2023-12-05,11 SERVICES,CHIEF FINANCIAL OFFICER,Ashfords Llp,486330,1500,844502439
BEIS,Met Office,2023-12-04,13 MISCELLANEOUS,CHIEF FINANCIAL OFFICER,BANNER GROUP LIMITED,486031,-18.94,GB391085740
BEIS,Met Office,2023-12-04,13 MISCELLANEOUS,CHIEF FINANCIAL OFFICER,BANNER GROUP LIMITED,486085,3.85,GB391085740
BEIS,Met Office,2023-12-19,13 MISCELLANEOUS,CHIEF FINANCIAL OFFICER,BANNER GROUP LIMITED,486908,14.03,GB391085740
BEIS,Met Office,2023-12-04,13 MISCELLANEOUS,CHIEF FINANCIAL OFFICER,BANNER GROUP LIMITED,486086,20.35,GB391085740
BEIS,Met Office,2023-12-05,06 ACCOMMODATION,CHIEF FINANCIAL OFFICER,BIDVEST NOONAN UK LTD,486316,191.01,GB847176988
BEIS,Met Office,2023-12-19,06 ACCOMMODATION,CHIEF FINANCIAL OFFICER,BIDVEST NOONAN UK LTD,486923,238.14,GB847176988
BEIS,Met Office,2023-12-19,13 MISCELLANEOUS,CHIEF FINANCIAL OFFICER,BIDVEST NOONAN UK LTD,486924,238.14,GB847176988
BEIS,Met Office,2023-12-13,06 ACCOMMODATION,CHIEF FINANCIAL OFFICER,BIDVEST NOONAN UK LTD,486706,501.58,GB847176988
BEIS,Met Office,2023-12-13,06 ACCOMMODATION,CHIEF FINANCIAL OFFICER,BIDVEST NOONAN UK LTD,486707,1111.97,GB847176988
BEIS,Met Office,2023-12-12,06 ACCOMMODATION,CHIEF FINANCIAL OFFICER,Biffa Waste Services Ltd,486645,85,537911627
BEIS,Met Office,2023-12-01,06 ACCOMMODATION,CHIEF FINANCIAL OFFICER,Biffa Waste Services Ltd,486108,86.06,537911627
BEIS,Met Office,2023-12-01,06 ACCOMMODATION,CHIEF FINANCIAL OFFICER,Biffa Waste Services Ltd,486113,94.9,537911627
BEIS,Met Office,2023-12-01,06 ACCOMMODATION,CHIEF FINANCIAL OFFICER,Biffa Waste Services Ltd,486111,130.52,537911627
BEIS,Met Office,2023-12-04,06 ACCOMMODATION,CHIEF FINANCIAL OFFICER,Biffa Waste Services Ltd,486114,369.98,537911627
BEIS,Met Office,2023-12-01,06 ACCOMMODATION,CHIEF FINANCIAL OFFICER,Biffa Waste Services Ltd,486107,480,537911627
BEIS,Met Office,2023-12-01,06 ACCOMMODATION,CHIEF FINANCIAL OFFICER,Biffa Waste Services Ltd,486110,724.88,537911627
BEIS,Met Office,2023-12-01,06 ACCOMMODATION,CHIEF FINANCIAL OFFICER,Biffa Waste Services Ltd,486115,736.84,537911627
BEIS,Met Office,2023-12-01,06 ACCOMMODATION,CHIEF FINANCIAL OFFICER,Biffa Waste Services Ltd,486106,755.17,537911627
BEIS,Met Office,2023-12-18,11 SERVICES,CHIEF FINANCIAL OFFICER,British Red Cross Society,484236,-159,706926227
BEIS,Met Office,2023-12-18,11 SERVICES,CHIEF FINANCIAL OFFICER,British Red Cross Society,486762,1041,706926227
BEIS,Met Office,2023-12-21,11 SERVICES,CHIEF FINANCIAL OFFICER,BT GLOBAL SERVICES,486971,514.15,245719348
BEIS,Met Office,2023-12-04,11 SERVICES,CHIEF FINANCIAL OFFICER,BT plc,486187,10288.09,245719348
BEIS,Met Office,2023-12-07,06 ACCOMMODATION,CHIEF FINANCIAL OFFICER,BUSINESS SUPPORT CENTRE LTD,486485,1027.28,927365208
BEIS,Met Office,2023-12-21,06 ACCOMMODATION,CHIEF FINANCIAL OFFICER,CALOR GAS LIMITED,487027,337.97,207610984
BEIS,Met Office,2023-12-04,06 ACCOMMODATION,CHIEF FINANCIAL OFFICER,CALOR GAS LIMITED,486188,369.32,207610984
BEIS,Met Office,2023-12-18,13 MISCELLANEOUS,CHIEF FINANCIAL OFFICER,CANON UK LTD,482693,-10621.56,523797128
BEIS,Met Office,2023-12-08,13 MISCELLANEOUS,CHIEF FINANCIAL OFFICER,CANON UK LTD,483466,1,523797128
BEIS,Met Office,2023-12-08,13 MISCELLANEOUS,CHIEF FINANCIAL OFFICER,CANON UK LTD,483467,1,523797128
BEIS,Met Office,2023-12-08,13 MISCELLANEOUS,CHIEF FINANCIAL OFFICER,CANON UK LTD,484302,1,523797128
BEIS,Met Office,2023-12-08,13 MISCELLANEOUS,CHIEF FINANCIAL OFFICER,CANON UK LTD,484343,1,523797128
BEIS,Met Office,2023-12-08,13 MISCELLANEOUS,CHIEF FINANCIAL OFFICER,CANON UK LTD,484304,26.34,523797128
BEIS,Met Office,2023-12-08,13 MISCELLANEOUS,CHIEF FINANCIAL OFFICER,CANON UK LTD,484343,297.62,523797128
BEIS,Met Office,2023-12-08,13 MISCELLANEOUS,CHIEF FINANCIAL OFFICER,CANON UK LTD,484753,425.76,523797128
BEIS,Met Office,2023-12-08,13 MISCELLANEOUS,CHIEF FINANCIAL OFFICER,CANON UK LTD,484302,508.34,523797128
BEIS,Met Office,2023-12-08,13 MISCELLANEOUS,CHIEF FINANCIAL OFFICER,CANON UK LTD,483467,941.26,523797128
BEIS,Met Office,2023-12-18,13 MISCELLANEOUS,CHIEF FINANCIAL OFFICER,CANON UK LTD,486846,1552.75,523797128
BEIS,Met Office,2023-12-08,13 MISCELLANEOUS,CHIEF FINANCIAL OFFICER,CANON UK LTD,484301,2989.5,523797128
BEIS,Met Office,2023-12-08,13 MISCELLANEOUS,CHIEF FINANCIAL OFFICER,CANON UK LTD,483466,3517.94,523797128
BEIS,Met Office,2023-12-08,13 MISCELLANEOUS,CHIEF FINANCIAL OFFICER,CANON UK LTD,486538,3518.94,523797128
BEIS,Met Office,2023-12-18,13 MISCELLANEOUS,CHIEF FINANCIAL OFFICER,CANON UK LTD,478319,10621.56,523797128
BEIS,Met Office,2023-12-08,06 ACCOMMODATION,CHIEF FINANCIAL OFFICER,CARDIFF COMMISSIONING LTD,486122,1380,484190139
BEIS,Met Office,2023-12-05,13 MISCELLANEOUS,CHIEF FINANCIAL OFFICER,CARDIFF EXECUTIVE CENTRE LTD,486291,5.5,864497378
BEIS,Met Office,2023-12-05,06 ACCOMMODATION,CHIEF FINANCIAL OFFICER,CARDIFF EXECUTIVE CENTRE LTD,486282,2470,864497378
BEIS,Met Office,2023-12-19,06 ACCOMMODATION,CHIEF FINANCIAL OFFICER,CBRE MANAGED SERVICES LTD,486894,11870.84,853936883
BEIS,Met Office,2023-12-19,06 ACCOMMODATION,CHIEF FINANCIAL OFFICER,CBRE MANAGED SERVICES LTD,486895,32376.24,853936883
BEIS,Met Office,2023-12-19,06 ACCOMMODATION,CHIEF FINANCIAL OFFICER,CBRE MANAGED SERVICES LTD,486896,42057.9,853936883
BEIS,Met Office,2023-12-08,06 ACCOMMODATION,CHIEF FINANCIAL OFFICER,CBRE MANAGED SERVICES LTD,486264,50760.1,853936883
BEIS,Met Office,2023-12-07,06 ACCOMMODATION,CHIEF FINANCIAL OFFICER,CBRE MANAGED SERVICES LTD,486266,59750.46,853936883
BEIS,Met Office,2023-12-07,06 ACCOMMODATION,CHIEF FINANCIAL OFFICER,CBRE MANAGED SERVICES LTD,486455,71103.65,853936883
BEIS,Met Office,2023-12-19,06 ACCOMMODATION,CHIEF FINANCIAL OFFICER,CBRE MANAGED SERVICES LTD,486899,144311.25,853936883
BEIS,Met Office,2023-12-05,06 ACCOMMODATION,CHIEF FINANCIAL OFFICER,CBRE MANAGED SERVICES LTD,486265,154281.85,853936883
BEIS,Met Office,2023-12-19,08 SOFTWARE LICENCES,CHIEF FINANCIAL OFFICER,CEMAR,486911,850,915042161
BEIS,Met Office,2023-12-21,13 MISCELLANEOUS,CHIEF FINANCIAL OFFICER,COURIER FORCE,486967,195,924397208
BEIS,Met Office,2023-12-01,06 ACCOMMODATION,CHIEF FINANCIAL OFFICER,D&G OFFICE SERVICES LTD,486227,561.48,272997547
BEIS,Met Office,2023-12-20,13 MISCELLANEOUS,CHIEF FINANCIAL OFFICER,DEMSTAR BUSINESS SOLUTIONS LTD,25401,79.48,10156145J
BEIS,Met Office,2023-12-05,13 MISCELLANEOUS,CHIEF FINANCIAL OFFICER,DWYFOR COFFEE COMPANY LTD,486029,-23.82,559811116
BEIS,Met Office,2023-12-05,13 MISCELLANEOUS,CHIEF FINANCIAL OFFICER,DWYFOR COFFEE COMPANY LTD,486357,32.6,559811116
BEIS,Met Office,2023-12-04,13 MISCELLANEOUS,CHIEF FINANCIAL OFFICER,EDEN SPRINGS UK LTD,486104,1387.3,232160411
BEIS,Met Office,2023-12-13,06 ACCOMMODATION,CHIEF FINANCIAL OFFICER,EDF ENERGY CUSTOMERS PLC,486702,6755.21,523041202
BEIS,Met Office,2023-12-07,06 ACCOMMODATION,CHIEF FINANCIAL OFFICER,EDF ENERGY CUSTOMERS PLC,486320,198596.64,523041202
BEIS,Met Office,2023-12-07,06 ACCOMMODATION,CHIEF FINANCIAL OFFICER,EDF ENERGY CUSTOMERS PLC,486322,205963.1,523041202
BEIS,Met Office,2023-12-07,06 ACCOMMODATION,CHIEF FINANCIAL OFFICER,EDF ENERGY CUSTOMERS PLC,486321,581642.37,523041202
BEIS,Met Office,2023-12-11,03 STAFF COSTS T&S,CHIEF FINANCIAL OFFICER,ENTERPRISE RENT A CAR UK LTD,486323,-49.81,215557314
BEIS,Met Office,2023-12-19,03 STAFF COSTS T&S,CHIEF FINANCIAL OFFICER,ENTERPRISE RENT A CAR UK LTD,486912,643.62,215557314
BEIS,Met Office,2023-12-18,03 STAFF COSTS T&S,CHIEF FINANCIAL OFFICER,ENTERPRISE RENT A CAR UK LTD,486778,968.27,215557314
BEIS,Met Office,2023-12-18,03 STAFF COSTS T&S,CHIEF FINANCIAL OFFICER,ENTERPRISE RENT A CAR UK LTD,486649,3440.28,215557314
BEIS,Met Office,2023-12-11,03 STAFF COSTS T&S,CHIEF FINANCIAL OFFICER,ENTERPRISE RENT A CAR UK LTD,486324,3753.92,215557314
BEIS,Met Office,2023-12-04,06 ACCOMMODATION,CHIEF FINANCIAL OFFICER,EXCEL AV LIMITED,486184,618.2,994305005
BEIS,Met Office,2023-12-13,11 SERVICES,CHIEF FINANCIAL OFFICER,EXPONENTIAL-E,486616,352.14,GB798572653
BEIS,Met Office,2023-12-05,11 SERVICES,CHIEF FINANCIAL OFFICER,EXPONENTIAL-E,486327,2281.82,GB798572653
BEIS,Met Office,2023-12-11,11 SERVICES,CHIEF FINANCIAL OFFICER,GAMMA TELECOM LTD,486611,570.83,823820344
BEIS,Met Office,2023-12-11,11 SERVICES,CHIEF FINANCIAL OFFICER,GAMMA TELECOM LTD,486611,1389.5,823820344
BEIS,Met Office,2023-12-11,11 SERVICES,CHIEF FINANCIAL OFFICER,GAMMA TELECOM LTD,486611,27997.74,823820344
BEIS,Met Office,2023-12-13,11 SERVICES,CHIEF FINANCIAL OFFICER,GB GROUP PLC,486739,118.35,539716218
BEIS,Met Office,2023-12-13,11 SERVICES,CHIEF FINANCIAL OFFICER,GB GROUP PLC,486738,505.46,539716218
BEIS,Met Office,2023-12-12,11 SERVICES,CHIEF FINANCIAL OFFICER,GIBRALTAR NYNEX COMMUNICATIONS LTD,486572,660,NOVAT
BEIS,Met Office,2023-12-08,06 ACCOMMODATION,CHIEF FINANCIAL OFFICER,GREAT WESTERN AIR AMBULANCE CHARITY,486570,50,295 6766 39
BEIS,Met Office,2023-12-19,06 ACCOMMODATION,CHIEF FINANCIAL OFFICER,GRS BUILDING SERVICES SOUTH-WEST,486904,8497.46,-
BEIS,Met Office,2023-12-06,06 ACCOMMODATION,CHIEF FINANCIAL OFFICER,GRS BUILDING SERVICES SOUTH-WEST,486268,8591.69,-
BEIS,Met Office,2023-12-21,06 ACCOMMODATION,CHIEF FINANCIAL OFFICER,GVAV LIMITED,486977,1676,770015070
BEIS,Met Office,2023-12-01,06 ACCOMMODATION,CHIEF FINANCIAL OFFICER,HAFREN DYFRDWY CYFYNGEDIG,481448,375,486985565
BEIS,Met Office,2023-12-05,06 ACCOMMODATION,CHIEF FINANCIAL OFFICER,HAFREN DYFRDWY CYFYNGEDIG,486263,375,486985565
BEIS,Met Office,2023-12-07,06 ACCOMMODATION,CHIEF FINANCIAL OFFICER,HAFREN DYFRDWY CYFYNGEDIG,486470,375,486985565
BEIS,Met Office,2023-12-04,06 ACCOMMODATION,CHIEF FINANCIAL OFFICER,INFOGRID,486212,4800,293809562
BEIS,Met Office,2023-12-05,11 SERVICES,CHIEF FINANCIAL OFFICER,JERSEY TELECOM,486318,1292.4,NOTVATREG
BEIS,Met Office,2023-12-05,06 ACCOMMODATION,CHIEF FINANCIAL OFFICER,LAMBERT SMITH HAMPTON GROUP LTD CLIENT A/C,486272,92.5,NOVAT
BEIS,Met Office,2023-12-05,06 ACCOMMODATION,CHIEF FINANCIAL OFFICER,LAMBERT SMITH HAMPTON GROUP LTD CLIENT A/C,486273,111,NOVAT
BEIS,Met Office,2023-12-18,PLANT AND EQUIPMENT,CHIEF FINANCIAL OFFICER,Lars Communications Ltd,486012,2378,531463858
BEIS,Met Office,2023-12-19,06 ACCOMMODATION,CHIEF FINANCIAL OFFICER,LHR BUSINESS SUPPORT CENTRE LTD,486921,3484.58,927365404
BEIS,Met Office,2023-12-05,11 SERVICES,CHIEF FINANCIAL OFFICER,LICENCE BUREAU LTD,486332,94.55,820219467
BEIS,Met Office,2023-12-13,11 SERVICES,CHIEF FINANCIAL OFFICER,LOGICALIS UK Limited,486659,1612.5,864475392
BEIS,Met Office,2023-12-19,06 ACCOMMODATION,CHIEF FINANCIAL OFFICER,MAPP (PROPERTY MANAGEMENT) LTD,486900,82.5,725900735
BEIS,Met Office,2023-12-05,06 ACCOMMODATION,CHIEF FINANCIAL OFFICER,Mitie Landscapes Ltd,486235,10635.54,GB 416 706 654
BEIS,Met Office,2023-12-07,11 SERVICES,CHIEF FINANCIAL OFFICER,MITIE SECURITY LTD,481445,335.04,416706654
BEIS,Met Office,2023-12-11,11 SERVICES,CHIEF FINANCIAL OFFICER,MITIE SECURITY LTD,486537,1138.11,416706654
BEIS,Met Office,2023-12-11,11 SERVICES,CHIEF FINANCIAL OFFICER,MITIE SECURITY LTD,486536,1348.5,416706654
BEIS,Met Office,2023-12-06,11 SERVICES,CHIEF FINANCIAL OFFICER,MITIE SECURITY LTD,486285,3488.02,416706654
BEIS,Met Office,2023-12-06,11 SERVICES,CHIEF FINANCIAL OFFICER,MITIE SECURITY LTD,486285,8137,416706654
BEIS,Met Office,2023-12-06,11 SERVICES,CHIEF FINANCIAL OFFICER,MITIE SECURITY LTD,486283,23148.5,416706654
BEIS,Met Office,2023-12-08,06 ACCOMMODATION,CHIEF FINANCIAL OFFICER,Morton Fraser LLP,486453,500,269129336
BEIS,Met Office,2023-12-01,13 MISCELLANEOUS,CHIEF FINANCIAL OFFICER,MOUCHEL BUS SERV LTD FRC PREPAYERS LEVY AC,486186,1173.03,577815493
BEIS,Met Office,2023-12-08,11 SERVICES,CHIEF FINANCIAL OFFICER,MRI SOFTWARE LIMITED,486467,1980,916220551
BEIS,Met Office,2023-12-21,11 SERVICES,CHIEF FINANCIAL OFFICER,MRI SOFTWARE LIMITED,486567,11851.08,916220551
BEIS,Met Office,2023-12-21,11 SERVICES,CHIEF FINANCIAL OFFICER,MRI SOFTWARE LIMITED,486566,25057.46,916220551
BEIS,Met Office,2023-12-07,13 MISCELLANEOUS,CHIEF FINANCIAL OFFICER,NORFOLK WATER LIMITED,486242,51.8,833 6292 22
BEIS,Met Office,2023-12-19,13 MISCELLANEOUS,CHIEF FINANCIAL OFFICER,NORSCOTT VENDING SERVICES LTD,486926,41.7,751402071
BEIS,Met Office,2023-12-05,13 MISCELLANEOUS,CHIEF FINANCIAL OFFICER,NORSCOTT VENDING SERVICES LTD,486261,85,751402071
BEIS,Met Office,2023-12-08,06 ACCOMMODATION,CHIEF FINANCIAL OFFICER,OCS Group UK Limited,486571,208558.5,GB238034379
BEIS,Met Office,2023-12-08,13 MISCELLANEOUS,CHIEF FINANCIAL OFFICER,POSTURITE (UK) LTD,486238,49.95,583565114
BEIS,Met Office,2023-12-08,13 MISCELLANEOUS,CHIEF FINANCIAL OFFICER,POSTURITE (UK) LTD,486604,50,583565114
BEIS,Met Office,2023-12-18,13 MISCELLANEOUS,CHIEF FINANCIAL OFFICER,POSTURITE (UK) LTD,486811,50,583565114
BEIS,Met Office,2023-12-08,13 MISCELLANEOUS,CHIEF FINANCIAL OFFICER,POSTURITE (UK) LTD,486456,125.11,583565114
BEIS,Met Office,2023-12-18,06 ACCOMMODATION,CHIEF FINANCIAL OFFICER,POWER NI ENERGY LTD,486757,125.44,617518142
BEIS,Met Office,2023-12-07,06 ACCOMMODATION,CHIEF FINANCIAL OFFICER,POWER NI ENERGY LTD,486452,1031.56,617518142
BEIS,Met Office,2023-12-14,06 ACCOMMODATION,CHIEF FINANCIAL OFFICER,PUBLIC SUB ACCOUNT - HMG 4806,486760,680,888805068
BEIS,Met Office,2023-12-19,03 STAFF COSTS T&S,CHIEF FINANCIAL OFFICER,RAINBOW CITY TAXIS,486972,49.09,724295039
BEIS,Met Office,2023-12-05,06 ACCOMMODATION,CHIEF FINANCIAL OFFICER,REDACTED � PERSONAL DATA,486286,100,-
BEIS,Met Office,2023-12-13,06 ACCOMMODATION,CHIEF FINANCIAL OFFICER,REDACTED � PERSONAL DATA,486290,520,-
BEIS,Met Office,2023-12-05,06 ACCOMMODATION,CHIEF FINANCIAL OFFICER,REDACTED � PERSONAL DATA,486284,672.22,-
BEIS,Met Office,2023-12-05,06 ACCOMMODATION,CHIEF FINANCIAL OFFICER,REDACTED � PERSONAL DATA,486287,2700,-
BEIS,Met Office,2023-12-05,06 ACCOMMODATION,CHIEF FINANCIAL OFFICER,REIDHAVEN ESTATE,486366,635,267190641
BEIS,Met Office,2023-12-07,06 ACCOMMODATION,CHIEF FINANCIAL OFFICER,RIVER RIDGE,486434,133,176286083
BEIS,Met Office,2023-12-07,06 ACCOMMODATION,CHIEF FINANCIAL OFFICER,Severn Trent Water Ltd,486083,-32,486985565
BEIS,Met Office,2023-12-07,06 ACCOMMODATION,CHIEF FINANCIAL OFFICER,Severn Trent Water Ltd,486461,134.24,486985565
BEIS,Met Office,2023-12-14,06 ACCOMMODATION,CHIEF FINANCIAL OFFICER,SHETLAND CLEANING SERVICES,486758,831.13,430028404
BEIS,Met Office,2023-12-05,13 MISCELLANEOUS,CHIEF FINANCIAL OFFICER,SIGNS EXPRESS (EXETER),486243,77.2,631397439
BEIS,Met Office,2023-12-18,06 ACCOMMODATION,CHIEF FINANCIAL OFFICER,SIGNS EXPRESS (EXETER),486763,122.92,631397439
BEIS,Met Office,2023-12-13,06 ACCOMMODATION,CHIEF FINANCIAL OFFICER,SIGNS EXPRESS (EXETER),486655,348.4,631397439
BEIS,Met Office,2023-12-07,06 ACCOMMODATION,CHIEF FINANCIAL OFFICER,South West Water Ltd,486241,70.17,236873674
BEIS,Met Office,2023-12-18,06 ACCOMMODATION,CHIEF FINANCIAL OFFICER,South West Water Ltd,486759,1077.24,236873674
BEIS,Met Office,2023-12-13,06 ACCOMMODATION,CHIEF FINANCIAL OFFICER,South West Water Ltd,486643,4808.92,236873674
BEIS,Met Office,2023-12-05,06 ACCOMMODATION,CHIEF FINANCIAL OFFICER,Southern Education & Library Board,486288,50,-
BEIS,Met Office,2023-12-14,06 ACCOMMODATION,CHIEF FINANCIAL OFFICER,St. Modwen Properties Limited,486468,-80.6,005489575
BEIS,Met Office,2023-12-21,06 ACCOMMODATION,CHIEF FINANCIAL OFFICER,St. Modwen Properties Limited,487017,46.05,005489575
BEIS,Met Office,2023-12-14,06 ACCOMMODATION,CHIEF FINANCIAL OFFICER,St. Modwen Properties Limited,486684,750,005489575
BEIS,Met Office,2023-12-12,11 SERVICES,CHIEF FINANCIAL OFFICER,SURE SOUTH ATLANTIC LTD,486648,2124.59,NOVATREG
BEIS,Met Office,2023-12-13,11 SERVICES,CHIEF FINANCIAL OFFICER,SURE SOUTH ATLANTIC LTD,486704,4801,-
BEIS,Met Office,2023-12-13,11 SERVICES,CHIEF FINANCIAL OFFICER,SURE SOUTH ATLANTIC LTD,486703,6478,-
BEIS,Met Office,2023-12-18,11 SERVICES,CHIEF FINANCIAL OFFICER,SURE SOUTH ATLANTIC LTD (ST HELENA),486815,1413.5,30005
BEIS,Met Office,2023-12-20,11 SERVICES,CHIEF FINANCIAL OFFICER,SWISSCOM (SCHWEIZ) AG,486531,101.88,-
BEIS,Met Office,2023-12-19,11 SERVICES,CHIEF FINANCIAL OFFICER,TELEFONICA O2 UK LIMITED,486907,57.4,778603785
BEIS,Met Office,2023-12-12,11 SERVICES,CHIEF FINANCIAL OFFICER,TELEFONICA O2 UK LIMITED,486650,3892.69,778603785
BEIS,Met Office,2023-12-20,11 SERVICES,CHIEF FINANCIAL OFFICER,TELIA FINLAND OYJ,25405,266.97,FI14756079
BEIS,Met Office,2023-12-12,11 SERVICES,CHIEF FINANCIAL OFFICER,THE STRENGTHS PEOPLE LTD,486662,6061,206868488
BEIS,Met Office,2023-12-04,08 SOFTWARE LICENCES,CHIEF FINANCIAL OFFICER,TIMEWATCH PLC,486225,916.67,461555250
BEIS,Met Office,2023-12-05,06 ACCOMMODATION,CHIEF FINANCIAL OFFICER,TOP RANK CLEANING SERVICES LTD,486352,950.56,-
BEIS,Met Office,2023-12-18,06 ACCOMMODATION,CHIEF FINANCIAL OFFICER,TOTAL GAS & POWER LIMITED,486749,1185.02,689638949
BEIS,Met Office,2023-12-18,06 ACCOMMODATION,CHIEF FINANCIAL OFFICER,TOTAL GAS & POWER LIMITED,486748,18100.17,689638949
BEIS,Met Office,2023-12-19,06 ACCOMMODATION,CHIEF FINANCIAL OFFICER,UK CENTRE FOR ECOLOGY & HYDROLOGY (UKCEH),486925,2772.65,336940192
BEIS,Met Office,2023-12-05,06 ACCOMMODATION,CHIEF FINANCIAL OFFICER,UNIVERSAL CLEANING SERVICES,486372,186.44,-
BEIS,Met Office,2023-12-14,06 ACCOMMODATION,CHIEF FINANCIAL OFFICER,VICKERY HOLMAN,486781,4365.62,943875678
BEIS,Met Office,2023-12-07,11 SERVICES,CHIEF FINANCIAL OFFICER,Vodafone Limited,486487,4131.17,569953277
BEIS,Met Office,2023-12-06,11 SERVICES,CHIEF FINANCIAL OFFICER,Vodafone Limited,485411,34438.42,569953277
BEIS,Met Office,2023-12-07,11 SERVICES,CHIEF FINANCIAL OFFICER,Vodafone Ltd,486480,37.5,569953277
BEIS,Met Office,2023-12-07,11 SERVICES,CHIEF FINANCIAL OFFICER,Vodafone Ltd,486481,37.5,569953277
BEIS,Met Office,2023-12-07,11 SERVICES,CHIEF FINANCIAL OFFICER,Vodafone Ltd,486482,37.5,569953277
BEIS,Met Office,2023-12-07,11 SERVICES,CHIEF FINANCIAL OFFICER,Vodafone Ltd,486483,37.5,569953277
BEIS,Met Office,2023-12-01,11 SERVICES,CHIEF FINANCIAL OFFICER,WEBEX COMMUNICATIONS UK LTD,486116,209.92,815974302
BEIS,Met Office,2023-12-21,06 ACCOMMODATION,CHIEF FINANCIAL OFFICER,Wessex Water Services Ltd,487019,350,-
BEIS,Met Office,2023-12-01,11 SERVICES,CHIEF FINANCIAL OFFICER,WOMBLE BOND DICKINSON (UK) LLP,486224,2184,GB123393627
BEIS,Met Office,2023-12-01,11 SERVICES,CHIEF FINANCIAL OFFICER,WOMBLE BOND DICKINSON (UK) LLP,486223,19125,GB123393627
BEIS,Met Office,2023-12-06,11 SERVICES,CHIEF FINANCIAL OFFICER,WT CONSULTANCY (SW) LTD,486370,1750,223 4662 25
BEIS,Met Office,2023-12-06,11 SERVICES,CHIEF FINANCIAL OFFICER,WT CONSULTANCY (SW) LTD,486371,18650,223 4662 25
BEIS,Met Office,2023-12-12,11 SERVICES,MARKETS,2CV,486328,33500,GB 523 2129 84
BEIS,Met Office,2023-12-12,11 SERVICES,MARKETS,ACCELERATION EMARKETING,486701,4480.43,848940776
BEIS,Met Office,2023-12-06,11 SERVICES,MARKETS,ADOPSTAR,486335,1325,115036848
BEIS,Met Office,2023-12-12,11 SERVICES,MARKETS,ALPHABET (GB) LTD,486731,-312.34,572417244
BEIS,Met Office,2023-12-12,11 SERVICES,MARKETS,ALPHABET (GB) LTD,486732,-122.9,572417244
BEIS,Met Office,2023-12-12,11 SERVICES,MARKETS,ALPHABET (GB) LTD,428163,122.9,572417244
BEIS,Met Office,2023-12-12,11 SERVICES,MARKETS,ALPHABET (GB) LTD,424012,312.34,572417244
BEIS,Met Office,2023-12-05,12 INTERNATIONAL,MARKETS,APPLIED SATELLITE TECHNOLOGY SYSTEMS LTD,486354,34.64,720108683
BEIS,Met Office,2023-12-08,11 SERVICES,MARKETS,BJSS LIMITED,486545,187.5,613295452
BEIS,Met Office,2023-12-13,11 SERVICES,MARKETS,BMG RESEARCH LTD,486608,29460,580 6606 32
BEIS,Met Office,2023-12-13,11 SERVICES,MARKETS,BRIGHTCOVE INC,484123,15000,TAX 20-1579162
BEIS,Met Office,2023-12-19,11 SERVICES,MARKETS,DEPT FOR SCIENCE INNOVATION & TECHNOLOGY,486874,540574.55,-
BEIS,Met Office,2023-12-20,12 INTERNATIONAL,MARKETS,Deutscher Wetterdienst,25175,6804.7,-
BEIS,Met Office,2023-12-06,08 SOFTWARE LICENCES,MARKETS,DOMO INC,476811,19027,-
BEIS,Met Office,2023-12-05,12 INTERNATIONAL,MARKETS,FOXSTONES TRAINING AND LEARNING,486220,2950,-
BEIS,Met Office,2023-12-21,11 SERVICES,MARKETS,HITCH MARKETING LTD,487026,18155,137 9482 76
BEIS,Met Office,2023-12-05,11 SERVICES,MARKETS,INMARSAT SOLUTIONS (CANADA) INC,486278,1965,766144223
BEIS,Met Office,2023-12-06,11 SERVICES,MARKETS,"INTELLOVATIONS, LLC",11324,4239.51,-
BEIS,Met Office,2023-12-06,11 SERVICES,MARKETS,"INTELLOVATIONS, LLC",11318,5948.8,-
BEIS,Met Office,2023-12-06,11 SERVICES,MARKETS,INTERNATIONAL AIR TRANSPORT ASSOCIATION,11321,8724.91,107510570RT0001
BEIS,Met Office,2023-12-21,13 MISCELLANEOUS,MARKETS,INTERNET ADVERTISING BUREAU (IAB UK),487048,9391,735 4500 47
BEIS,Met Office,2023-12-13,12 INTERNATIONAL,MARKETS,MACITECHSY SOLUTIONS,486613,740,-
BEIS,Met Office,2023-12-06,11 SERVICES,MARKETS,MADE TECH,486317,22214.29,938565184
BEIS,Met Office,2023-12-20,11 SERVICES,MARKETS,MONGODB LTD,486777,6220.8,IE9793087U
BEIS,Met Office,2023-12-20,11 SERVICES,MARKETS,NSSL GLOBAL LTD,11296,44.04,725151948
BEIS,Met Office,2023-12-08,07 EQUIPMENT,MARKETS,OMNI INSTRUMENTS LTD,486599,3250,GB683090624
BEIS,Met Office,2023-12-12,07 EQUIPMENT,MARKETS,OMNI INSTRUMENTS LTD,486598,3265,GB683090624
BEIS,Met Office,2023-12-21,11 SERVICES,MARKETS,OSBORNE CLARKE LLP,487025,3000,GB138187353
BEIS,Met Office,2023-12-13,11 SERVICES,MARKETS,Presentation Cartography Ltd,472505,2135,-
BEIS,Met Office,2023-12-18,11 SERVICES,MARKETS,REDACTED � PERSONAL DATA,486880,780,-
BEIS,Met Office,2023-12-19,11 SERVICES,MARKETS,REDACTED � PERSONAL DATA,486965,780,-
BEIS,Met Office,2023-12-19,11 SERVICES,MARKETS,REDACTED � PERSONAL DATA,486969,780,-
BEIS,Met Office,2023-12-19,11 SERVICES,MARKETS,REDACTED � PERSONAL DATA,486973,780,-
BEIS,Met Office,2023-12-06,12 INTERNATIONAL,MARKETS,REDACTED � PERSONAL DATA,11317,2895.08,-
BEIS,Met Office,2023-12-13,11 SERVICES,MARKETS,SOFTWIRE TECHNOLOGY LIMITED,486530,26880,752 1253 57
BEIS,Met Office,2023-12-08,11 SERVICES,MARKETS,SPOKE (INTERACTIVE) LTD,486478,770,840156451
BEIS,Met Office,2023-12-21,11 SERVICES,MARKETS,SWANTECH LOGISTICS LTD,487028,1483.2,769332401
BEIS,Met Office,2023-12-18,11 SERVICES,MARKETS,UK CENTRE FOR ECOLOGY & HYDROLOGY (UKCEH),486768,17014,336940192
BEIS,Met Office,2023-12-21,11 SERVICES,MARKETS,UK CENTRE FOR ECOLOGY & HYDROLOGY (UKCEH),486770,22000,336940192
BEIS,Met Office,2023-12-01,11 SERVICES,MARKETS,WESTPOINT CENTRE (DEVON) LTD,486121,-119,585 6015 25
BEIS,Met Office,2023-12-05,06 ACCOMMODATION,MARKETS,WHITEHAVEN MARINA LTD,486289,7.5,947044906
BEIS,Met Office,2023-12-05,06 ACCOMMODATION,MARKETS,WHITEHAVEN MARINA LTD,486289,50,947044906
BEIS,Met Office,2023-12-11,11 SERVICES,MARKETS,WORLDPAY (UK) LTD,486568,584.02,991280207
BEIS,Met Office,2023-12-05,11 SERVICES,MARKETS,WORLDPAY LTD,486325,26.45,991280207
BEIS,Met Office,2023-12-18,11 SERVICES,OFFICE OF THE CEO,HAYMARKET MEDIA GROUP LTD,484839,-595,GB232584272
BEIS,Met Office,2023-12-01,11 SERVICES,OFFICE OF THE CEO,MAZARS LLP,486213,3050,839835673
BEIS,Met Office,2023-12-01,11 SERVICES,OFFICE OF THE CEO,MAZARS LLP,486214,23070,839835673
BEIS,Met Office,2023-12-08,CYCLESCHEME,OTHER,EDENRED EB (SHOPPING VOUCHERS),486448,2964,649 503 520
BEIS,Met Office,2023-12-11,CYCLESCHEME,OTHER,EDENRED UK (CYCLESCHEME),470910,-1723.33,649 503 520
BEIS,Met Office,2023-12-11,CYCLESCHEME,OTHER,EDENRED UK (CYCLESCHEME),486694,1723.33,649 503 520
BEIS,Met Office,2023-12-11,CYCLESCHEME,OTHER,EDENRED UK (CYCLESCHEME),486615,6244.44,649 503 520
BEIS,Met Office,2023-12-20,TRADE CREDITORS,OTHER,NATWEST COMMERCIAL CARDS DIVISION,486980,152177.61,N/A
BEIS,Met Office,2023-12-14,11 SERVICES,PEOPLE,ACTIVE LEARNING TEAM LTD,486848,-3440.82,-
BEIS,Met Office,2023-12-19,11 SERVICES,PEOPLE,ACTIVE LEARNING TEAM LTD,486901,1400,-
BEIS,Met Office,2023-12-14,11 SERVICES,PEOPLE,ACTIVE LEARNING TEAM LTD,486849,2867.35,-
BEIS,Met Office,2023-12-08,11 SERVICES,PEOPLE,ACTIVE LEARNING TEAM LTD,486469,3440.82,-
BEIS,Met Office,2023-12-11,11 SERVICES,PEOPLE,ALL THINGS IC LIMITED,486435,1750,161381327
BEIS,Met Office,2023-12-11,11 SERVICES,PEOPLE,BITPOD LIMITED,486569,13013.2,124 9359 03
BEIS,Met Office,2023-12-08,13 MISCELLANEOUS,PEOPLE,BROADBEAN TECHNOLOGY LTD,486463,593.01,GB184088778
BEIS,Met Office,2023-12-05,08 SOFTWARE LICENCES,PEOPLE,CATALYST IT,486364,2270.82,978169262
BEIS,Met Office,2023-12-06,11 SERVICES,PEOPLE,CIPHR,486363,8750,242661124
BEIS,Met Office,2023-12-06,08 SOFTWARE LICENCES,PEOPLE,CIPHR,486363,51527.5,242661124
BEIS,Met Office,2023-12-01,11 SERVICES,PEOPLE,CIVICA UK LIMITED,485848,-4668.23,391171065
BEIS,Met Office,2023-12-01,11 SERVICES,PEOPLE,CIVICA UK LIMITED,486119,4214.66,391171065
BEIS,Met Office,2023-12-01,11 SERVICES,PEOPLE,CIVICA UK LIMITED,486137,7503.5,391171065
BEIS,Met Office,2023-12-06,13 MISCELLANEOUS,PEOPLE,EDENRED - CHILDCARE VOUCHERS,486281,8536.5,649 503 520
BEIS,Met Office,2023-12-18,13 MISCELLANEOUS,PEOPLE,EDENRED I&M (IRS VOUCHERS),473898,-20,649 503 520
BEIS,Met Office,2023-12-18,13 MISCELLANEOUS,PEOPLE,EDENRED I&M (IRS VOUCHERS),486315,204,649 503 520
BEIS,Met Office,2023-12-18,13 MISCELLANEOUS,PEOPLE,EDENRED I&M (IRS VOUCHERS),486314,45568.5,649 503 520
BEIS,Met Office,2023-12-18,11 SERVICES,PEOPLE,GRANICUS FIRMSTEP LTD,486779,36112.5,792638878
BEIS,Met Office,2023-12-06,11 SERVICES,PEOPLE,HEALTH ASSURED LIMITED,486438,1120,927 5242 17
BEIS,Met Office,2023-12-14,04 CONTRACTORS,PEOPLE,MATRIX SCM LIMITED,486808,207000.83,249 5734 68
BEIS,Met Office,2023-12-05,13 MISCELLANEOUS,PEOPLE,MATRIX SCM LIMITED,485814,217297.07,249 5734 68
BEIS,Met Office,2023-12-05,13 MISCELLANEOUS,PEOPLE,MATRIX SCM LIMITED,485526,242193.66,249 5734 68
BEIS,Met Office,2023-12-01,04 CONTRACTORS,PEOPLE,MATRIX SCM LIMITED,486216,244032.9,249 5734 68
BEIS,Met Office,2023-12-06,11 SERVICES,PEOPLE,MOMENTUM INCORPORATED,486219,6660,598958541
BEIS,Met Office,2023-12-21,11 SERVICES,PEOPLE,PRESS ASSOCIATION LTD,484916,7553.09,590629516
BEIS,Met Office,2023-12-11,11 SERVICES,PEOPLE,RESTORE RECORDS MANAGEMENT,486610,13.89,843 863011
BEIS,Met Office,2023-12-01,11 SERVICES,PEOPLE,RIVER TRAINING AND HR,486185,800,-
BEIS,Met Office,2023-12-11,11 SERVICES,PEOPLE,SKILLTEC LIMITED,482691,7775,909833105
BEIS,Met Office,2023-12-07,11 SERVICES,PEOPLE,TP HEALTH LTD,486329,982,883064608
BEIS,Met Office,2023-12-18,11 SERVICES,PEOPLE,TRIBEPAD LIMITED,486765,13375,GB931979630
BEIS,Met Office,2023-12-18,11 SERVICES,PEOPLE,TRIBEPAD LIMITED,486764,41000,GB931979630
BEIS,Met Office,2023-12-06,11 SERVICES,PEOPLE,YOTI LTD,486351,9,GB199947617
BEIS,Met Office,2023-12-20,13 MISCELLANEOUS,PROGRAMMES,AAAS,11322,334.05,826443479
BEIS,Met Office,2023-12-20,13 MISCELLANEOUS,PROGRAMMES,AMERICAN MET SOCIETY,11316,392.62,-
BEIS,Met Office,2023-12-18,11 SERVICES,PROGRAMMES,BAE SYSTEMS APPLIED INTELLIGENCE LIMITED,486816,6566,GB641407169
BEIS,Met Office,2023-12-18,11 SERVICES,PROGRAMMES,BAE SYSTEMS APPLIED INTELLIGENCE LIMITED,486816,7537.5,GB641407169
BEIS,Met Office,2023-12-18,11 SERVICES,PROGRAMMES,BAE SYSTEMS APPLIED INTELLIGENCE LIMITED,486816,9738,GB641407169
BEIS,Met Office,2023-12-18,11 SERVICES,PROGRAMMES,BAE SYSTEMS APPLIED INTELLIGENCE LIMITED,486816,11880,GB641407169
BEIS,Met Office,2023-12-18,11 SERVICES,PROGRAMMES,BAE SYSTEMS APPLIED INTELLIGENCE LIMITED,486816,15119,GB641407169
BEIS,Met Office,2023-12-18,11 SERVICES,PROGRAMMES,BAE SYSTEMS APPLIED INTELLIGENCE LIMITED,486816,15946,GB641407169
BEIS,Met Office,2023-12-18,11 SERVICES,PROGRAMMES,BAE SYSTEMS APPLIED INTELLIGENCE LIMITED,486816,15946,GB641407169
BEIS,Met Office,2023-12-18,11 SERVICES,PROGRAMMES,BAE SYSTEMS APPLIED INTELLIGENCE LIMITED,486816,16884,GB641407169
BEIS,Met Office,2023-12-18,11 SERVICES,PROGRAMMES,BAE SYSTEMS APPLIED INTELLIGENCE LIMITED,486816,16884,GB641407169
BEIS,Met Office,2023-12-18,11 SERVICES,PROGRAMMES,BAE SYSTEMS APPLIED INTELLIGENCE LIMITED,486816,16884,GB641407169
BEIS,Met Office,2023-12-18,11 SERVICES,PROGRAMMES,BAE SYSTEMS APPLIED INTELLIGENCE LIMITED,486816,16884,GB641407169
BEIS,Met Office,2023-12-18,11 SERVICES,PROGRAMMES,BAE SYSTEMS APPLIED INTELLIGENCE LIMITED,486817,18760,GB641407169
BEIS,Met Office,2023-12-18,11 SERVICES,PROGRAMMES,BAE SYSTEMS APPLIED INTELLIGENCE LIMITED,486816,20934,GB641407169
BEIS,Met Office,2023-12-18,11 SERVICES,PROGRAMMES,BAE SYSTEMS APPLIED INTELLIGENCE LIMITED,486816,20934,GB641407169
BEIS,Met Office,2023-12-18,11 SERVICES,PROGRAMMES,BAE SYSTEMS APPLIED INTELLIGENCE LIMITED,486816,25416,GB641407169
BEIS,Met Office,2023-12-08,11 SERVICES,PROGRAMMES,BAE SYSTEMS APPLIED INTELLIGENCE LIMITED,486540,41691.4,GB641407169
BEIS,Met Office,2023-12-01,06 ACCOMMODATION,PROGRAMMES,Biffa Waste Services Ltd,486109,501.28,537911627
BEIS,Met Office,2023-12-08,11 SERVICES,PROGRAMMES,BJSS LIMITED,486548,13437.5,613295452
BEIS,Met Office,2023-12-08,11 SERVICES,PROGRAMMES,BJSS LIMITED,486546,13719,613295452
BEIS,Met Office,2023-12-08,11 SERVICES,PROGRAMMES,BJSS LIMITED,486549,26875,613295452
BEIS,Met Office,2023-12-13,11 SERVICES,PROGRAMMES,BJSS LIMITED,486609,29950,613295452
BEIS,Met Office,2023-12-08,11 SERVICES,PROGRAMMES,BJSS LIMITED,486547,41350,613295452
BEIS,Met Office,2023-12-08,11 SERVICES,PROGRAMMES,BJSS LIMITED,486546,49031,613295452
BEIS,Met Office,2023-12-13,11 SERVICES,PROGRAMMES,BJSS LIMITED,486609,78550,613295452
BEIS,Met Office,2023-12-08,11 SERVICES,PROGRAMMES,BJSS LIMITED,486526,99411.25,613295452
BEIS,Met Office,2023-12-14,13 MISCELLANEOUS,PROGRAMMES,CAMBRIDGE UNIVERSITY PRESS AND ASSESSMENT,486847,150.6,GB 823 8476 09
BEIS,Met Office,2023-12-20,11 SERVICES,PROGRAMMES,CENTRE R�GIONAL AGRHYMET,486887,9000,-
BEIS,Met Office,2023-12-14,11 SERVICES,PROGRAMMES,Cgi It Uk Limited,486687,28588,232615194
BEIS,Met Office,2023-12-14,11 SERVICES,PROGRAMMES,Cgi It Uk Limited,486688,37693,232615194
BEIS,Met Office,2023-12-14,11 SERVICES,PROGRAMMES,Cgi It Uk Limited,486686,79239,232615194
BEIS,Met Office,2023-12-20,13 MISCELLANEOUS,PROGRAMMES,CLARIVATE ANALYTICS (US) LLC,11311,11300.97,EU826000773
BEIS,Met Office,2023-12-04,11 SERVICES,PROGRAMMES,DELOITTE LLP LIMITED,486183,103144.58,GB809707706
BEIS,Met Office,2023-12-18,06 ACCOMMODATION,PROGRAMMES,Exeter City Council,479462,168960,142335594
BEIS,Met Office,2023-12-04,11 SERVICES,PROGRAMMES,GLOBAL ACTION PLAN,486231,37564,GB 625 994 009
BEIS,Met Office,2023-12-08,11 SERVICES,PROGRAMMES,Hr Wallingford Ltd,486564,59958,570039752
BEIS,Met Office,2023-12-07,11 SERVICES,PROGRAMMES,Ibm United Kingdom Ltd,486334,620,107328000
BEIS,Met Office,2023-12-07,11 SERVICES,PROGRAMMES,Ibm United Kingdom Ltd,486368,12820.5,107328000
BEIS,Met Office,2023-12-06,11 SERVICES,PROGRAMMES,"K F LEWIN CONSULTING, LLC",11275,3102.96,-
BEIS,Met Office,2023-12-06,11 SERVICES,PROGRAMMES,"K F LEWIN CONSULTING, LLC",11275,6594.08,-
BEIS,Met Office,2023-12-14,11 SERVICES,PROGRAMMES,KENYA METEOROLOGICAL DEPARTMENT,486753,109710,-
BEIS,Met Office,2023-12-11,11 SERVICES,PROGRAMMES,LAFOSSE ASSOCIATES,486555,32186.4,GB 360026537
BEIS,Met Office,2023-12-19,11 SERVICES,PROGRAMMES,LUTRA CONSULTING,486922,6300,142463822
BEIS,Met Office,2023-12-12,11 SERVICES,PROGRAMMES,RAINMAKER SOLUTIONS LTD,486232,245.7,-
BEIS,Met Office,2023-12-19,11 SERVICES,PROGRAMMES,RAINMAKER SOLUTIONS LTD,486685,860.93,-
BEIS,Met Office,2023-12-12,11 SERVICES,PROGRAMMES,RAINMAKER SOLUTIONS LTD,486232,23875,-
BEIS,Met Office,2023-12-21,11 SERVICES,PROGRAMMES,Red Oak Consulting LLP,486968,22660,807766990
BEIS,Met Office,2023-12-13,11 SERVICES,PROGRAMMES,ROWE IT LTD,486614,8325.45,924964394
BEIS,Met Office,2023-12-19,11 SERVICES,PROGRAMMES,ROWE IT LTD,486903,17039.07,924964394
BEIS,Met Office,2023-12-13,11 SERVICES,PROGRAMMES,ROWE IT LTD,486614,18316.03,924964394
BEIS,Met Office,2023-12-13,11 SERVICES,PROGRAMMES,ROWE IT LTD,486614,18316.03,924964394
BEIS,Met Office,2023-12-13,11 SERVICES,PROGRAMMES,ROWE IT LTD,486614,53282.99,924964394
BEIS,Met Office,2023-12-13,11 SERVICES,PROGRAMMES,ROWE IT LTD,486614,68268.82,924964394
BEIS,Met Office,2023-12-07,11 SERVICES,PROGRAMMES,ROWE IT LTD,486433,103527.5,924964394
BEIS,Met Office,2023-12-08,11 SERVICES,PROGRAMMES,SCIENCE & TECHNOLOGY FACILITIES COUNCIL,486539,16666,287461957
BEIS,Met Office,2023-12-21,11 SERVICES,PROGRAMMES,SCIENCE & TECHNOLOGY FACILITIES COUNCIL,486930,22347,287461957
BEIS,Met Office,2023-12-21,11 SERVICES,PROGRAMMES,SCIENCE & TECHNOLOGY FACILITIES COUNCIL,486929,24850,287461957
BEIS,Met Office,2023-12-05,11 SERVICES,PROGRAMMES,SERVICENOW UK LTD.,486215,486,-
BEIS,Met Office,2023-12-20,13 MISCELLANEOUS,PROGRAMMES,SPRINGER CUSTOMER SERVICE CENTER GMBH,25390,2716.22,209719094
BEIS,Met Office,2023-12-12,11 SERVICES,PROGRAMMES,THE STRENGTHS PEOPLE LTD,486658,600,206868488
BEIS,Met Office,2023-12-14,11 SERVICES,PROGRAMMES,UK CENTRE FOR ECOLOGY & HYDROLOGY (UKCEH),486767,2902,336940192
BEIS,Met Office,2023-12-07,11 SERVICES,PROGRAMMES,University of Edinburgh,486457,33333,592950700
BEIS,Met Office,2023-12-13,11 SERVICES,PROGRAMMES,University of Edinburgh,486700,50040.8,592950700
BEIS,Met Office,2023-12-11,11 SERVICES,PROGRAMMES,University Of Exeter,486559,32823,142047795
BEIS,Met Office,2023-12-12,11 SERVICES,PROGRAMMES,University Of Leeds,486663,70201.23,613451470
BEIS,Met Office,2023-12-19,11 SERVICES,PROGRAMMES,University Of Leeds,486915,109959,613451470
BEIS,Met Office,2023-12-20,11 SERVICES,PROGRAMMES,UNIVERSITY OF LUXEMBOURG,25399,22180.9,LU19805732
BEIS,Met Office,2023-12-20,13 MISCELLANEOUS,SCIENCE,AAAS,11322,3004.54,826443479
BEIS,Met Office,2023-12-20,13 MISCELLANEOUS,SCIENCE,AMERICAN MET SOCIETY,11316,3535.97,-
BEIS,Met Office,2023-12-14,13 MISCELLANEOUS,SCIENCE,CAMBRIDGE UNIVERSITY PRESS AND ASSESSMENT,486847,2861.4,GB 823 8476 09
BEIS,Met Office,2023-12-20,13 MISCELLANEOUS,SCIENCE,CLARIVATE ANALYTICS (US) LLC,11311,101707.07,EU826000773
BEIS,Met Office,2023-12-06,11 SERVICES,SCIENCE,Esri (Uk) Ltd,486262,4989.93,787430791
BEIS,Met Office,2023-12-14,08 SOFTWARE LICENCES,SCIENCE,Grey Matter Ltd,486708,1222.38,384904621
BEIS,Met Office,2023-12-20,07 EQUIPMENT,SCIENCE,JADE UNIVERSITY OF APPLIED SCIENCES,25408,24307.83,DE265902596
BEIS,Met Office,2023-12-11,11 SERVICES,SCIENCE,Plymouth Marine Laboratory,486379,1758,927105830
BEIS,Met Office,2023-12-20,13 MISCELLANEOUS,SCIENCE,SPRINGER CUSTOMER SERVICE CENTER GMBH,25390,24445.95,209719094
BEIS,Met Office,2023-12-21,13 MISCELLANEOUS,SCIENCE,UKRI,486818,1000,GB287461957
BEIS,Met Office,2023-12-11,13 MISCELLANEOUS,SCIENCE,University Of East Anglia,486603,250,595183505
BEIS,Met Office,2023-12-11,13 MISCELLANEOUS,SCIENCE,University Of Exeter,486211,-1156.25,142047795
BEIS,Met Office,2023-12-11,13 MISCELLANEOUS,SCIENCE,University Of Exeter,482851,1156.25,142047795
BEIS,Met Office,2023-12-06,13 MISCELLANEOUS,SCIENCE,University Of Leeds,486388,1000,613451470
BEIS,Met Office,2023-12-13,11 SERVICES,SCIENCE,WATER B PTE LTD,486486,2047.71,-
BEIS,Met Office,2023-12-20,13 MISCELLANEOUS,SERVICES,AAAS,11322,1798.12,826443479
BEIS,Met Office,2023-12-05,11 SERVICES,SERVICES,ADAM PHONES LTD,486313,85.5,538877093
BEIS,Met Office,2023-12-21,04 CONTRACTORS,SERVICES,AFBI,486906,50,252677738
BEIS,Met Office,2023-12-13,STOCK,SERVICES,AIMER PRODUCTS LTD,486464,0,232175685
BEIS,Met Office,2023-12-13,11 SERVICES,SERVICES,AIMER PRODUCTS LTD,486464,20,232175685
BEIS,Met Office,2023-12-13,TRADE CREDITORS,SERVICES,AIMER PRODUCTS LTD,486464,510,232175685
BEIS,Met Office,2023-12-18,03 STAFF COSTS T&S,SERVICES,AIRPORT CAR RENTALS LTD,486806,478,-
BEIS,Met Office,2023-12-20,13 MISCELLANEOUS,SERVICES,AMERICAN MET SOCIETY,11316,2115.39,-
BEIS,Met Office,2023-12-13,11 SERVICES,SERVICES,ANVIL MOBILE LIMITED,486690,82.6,981686175
BEIS,Met Office,2023-12-06,11 SERVICES,SERVICES,APPLIED SATELLITE TECHNOLOGY SYSTEMS LTD,486353,34.64,720108683
BEIS,Met Office,2023-12-06,11 SERVICES,SERVICES,APPLIED SATELLITE TECHNOLOGY SYSTEMS LTD,486355,69.28,720108683
BEIS,Met Office,2023-12-06,11 SERVICES,SERVICES,APPLIED SATELLITE TECHNOLOGY SYSTEMS LTD,486356,145.05,720108683
BEIS,Met Office,2023-12-06,10 EQUIPMENT MAINTENANCE,SERVICES,ATRAD PTY LTD,486200,22340.9,-
BEIS,Met Office,2023-12-06,13 MISCELLANEOUS,SERVICES,AUTOMATED DOCUMENT SERVICES LTD,486436,3000.48,105353449
BEIS,Met Office,2023-12-08,11 SERVICES,SERVICES,BENTLEY TELECOM LTD (was Bentley Walker),486535,525,107995930
BEIS,Met Office,2023-12-13,11 SERVICES,SERVICES,Boc Ltd,486651,-125.65,226556555
BEIS,Met Office,2023-12-13,11 SERVICES,SERVICES,Boc Ltd,486333,13949.06,226556555
BEIS,Met Office,2023-12-14,13 MISCELLANEOUS,SERVICES,CAMBRIDGE UNIVERSITY PRESS AND ASSESSMENT,486847,1622,GB 823 8476 09
BEIS,Met Office,2023-12-05,STOCK,SERVICES,Campbell Scientific Ltd,486201,0,428453933
BEIS,Met Office,2023-12-05,STOCK,SERVICES,Campbell Scientific Ltd,486201,0,428453933
BEIS,Met Office,2023-12-05,11 SERVICES,SERVICES,Campbell Scientific Ltd,486201,60,428453933
BEIS,Met Office,2023-12-04,10 EQUIPMENT MAINTENANCE,SERVICES,Campbell Scientific Ltd,486172,90,428453933
BEIS,Met Office,2023-12-04,10 EQUIPMENT MAINTENANCE,SERVICES,Campbell Scientific Ltd,486172,240,428453933
BEIS,Met Office,2023-12-05,TRADE CREDITORS,SERVICES,Campbell Scientific Ltd,486201,3555,428453933
BEIS,Met Office,2023-12-05,TRADE CREDITORS,SERVICES,Campbell Scientific Ltd,486201,4177.5,428453933
BEIS,Met Office,2023-12-06,03 STAFF COSTS T&S,SERVICES,CHARLIE'S TRAVEL LTD,486361,0.05,783848277
BEIS,Met Office,2023-12-06,03 STAFF COSTS T&S,SERVICES,CHARLIE'S TRAVEL LTD,486361,0.1,783848277
BEIS,Met Office,2023-12-06,03 STAFF COSTS T&S,SERVICES,CHARLIE'S TRAVEL LTD,486361,316.91,783848277
BEIS,Met Office,2023-12-06,03 STAFF COSTS T&S,SERVICES,CHARLIE'S TRAVEL LTD,486361,1031.14,783848277
BEIS,Met Office,2023-12-12,08 SOFTWARE LICENCES,SERVICES,CIVICA UK LIMITED,485552,8016,391171065
BEIS,Met Office,2023-12-05,08 SOFTWARE LICENCES,SERVICES,CIVICA UK LIMITED,486239,11381.25,391171065
BEIS,Met Office,2023-12-18,13 MISCELLANEOUS,SERVICES,CLIMATOLOGICAL OBSERVERS LINK (COL),486776,50,NOTVATREG
BEIS,Met Office,2023-12-13,11 SERVICES,SERVICES,CLOUDREACH EUROPE LIMITED,486692,7300,978187168
BEIS,Met Office,2023-12-06,13 MISCELLANEOUS,SERVICES,COLLECTE LOCALISATION SATELLITES (C.L.S.),25372,78.57,FR95338034390
BEIS,Met Office,2023-12-06,11 SERVICES,SERVICES,COLLECTE LOCALISATION SATELLITES (C.L.S.),25373,215.13,FR95338034390
BEIS,Met Office,2023-12-06,11 SERVICES,SERVICES,COLLECTE LOCALISATION SATELLITES (C.L.S.),25371,3474.35,FR95338034390
BEIS,Met Office,2023-12-06,11 SERVICES,SERVICES,COLLECTE LOCALISATION SATELLITES (C.L.S.),25374,11032.29,FR95338034390
BEIS,Met Office,2023-12-05,11 SERVICES,SERVICES,COMMUNICATIONS & POWER IND. EUROPE LTD,11313,-191313.48,664103850
BEIS,Met Office,2023-12-05,11 SERVICES,SERVICES,COMMUNICATIONS & POWER IND. EUROPE LTD,11312,-145912.22,664103850
BEIS,Met Office,2023-12-05,11 SERVICES,SERVICES,COMMUNICATIONS & POWER IND. EUROPE LTD,11315,-42514.11,664103850
BEIS,Met Office,2023-12-05,11 SERVICES,SERVICES,COMMUNICATIONS & POWER IND. EUROPE LTD,11314,-34741.01,664103850
BEIS,Met Office,2023-12-05,11 SERVICES,SERVICES,COMMUNICATIONS & POWER IND. EUROPE LTD,10010,33158.21,664103850
BEIS,Met Office,2023-12-05,11 SERVICES,SERVICES,COMMUNICATIONS & POWER IND. EUROPE LTD,10011,40577.16,664103850
BEIS,Met Office,2023-12-05,11 SERVICES,SERVICES,COMMUNICATIONS & POWER IND. EUROPE LTD,10378,133285.32,664103850
BEIS,Met Office,2023-12-05,11 SERVICES,SERVICES,COMMUNICATIONS & POWER IND. EUROPE LTD,10379,174757.66,664103850
BEIS,Met Office,2023-12-19,13 MISCELLANEOUS,SERVICES,DBS FINANCE RECEIPTS CTS,486909,73.5,888805068
BEIS,Met Office,2023-12-11,03 STAFF COSTS T&S,SERVICES,DBS FINANCE RECEIPTS CTS,486458,13415,888805068
BEIS,Met Office,2023-12-06,10 EQUIPMENT MAINTENANCE,SERVICES,DEUTSCHE WINDGUARD WIND TUNNEL SERVICES GMBH,25403,8.68,DE225152482
BEIS,Met Office,2023-12-06,10 EQUIPMENT MAINTENANCE,SERVICES,DEUTSCHE WINDGUARD WIND TUNNEL SERVICES GMBH,25404,17.36,DE225152482
BEIS,Met Office,2023-12-06,10 EQUIPMENT MAINTENANCE,SERVICES,DEUTSCHE WINDGUARD WIND TUNNEL SERVICES GMBH,25403,43.41,DE225152482
BEIS,Met Office,2023-12-06,10 EQUIPMENT MAINTENANCE,SERVICES,DEUTSCHE WINDGUARD WIND TUNNEL SERVICES GMBH,25404,43.41,DE225152482
BEIS,Met Office,2023-12-06,10 EQUIPMENT MAINTENANCE,SERVICES,DEUTSCHE WINDGUARD WIND TUNNEL SERVICES GMBH,25403,260.44,DE225152482
BEIS,Met Office,2023-12-06,10 EQUIPMENT MAINTENANCE,SERVICES,DEUTSCHE WINDGUARD WIND TUNNEL SERVICES GMBH,25403,260.44,DE225152482
BEIS,Met Office,2023-12-06,10 EQUIPMENT MAINTENANCE,SERVICES,DEUTSCHE WINDGUARD WIND TUNNEL SERVICES GMBH,25403,272.6,DE225152482
BEIS,Met Office,2023-12-06,10 EQUIPMENT MAINTENANCE,SERVICES,DEUTSCHE WINDGUARD WIND TUNNEL SERVICES GMBH,25404,4453.54,DE225152482
BEIS,Met Office,2023-12-20,11 SERVICES,SERVICES,Deutscher Wetterdienst,25393,24081.49,-
BEIS,Met Office,2023-12-06,03 STAFF COSTS T&S,SERVICES,FALKLAND ISLAND COMPANY LTD,486358,700,N/A
BEIS,Met Office,2023-12-06,03 STAFF COSTS T&S,SERVICES,FALKLAND ISLAND COMPANY LTD,486359,700,N/A
BEIS,Met Office,2023-12-06,03 STAFF COSTS T&S,SERVICES,FALKLAND ISLAND COMPANY LTD,486360,700,N/A
BEIS,Met Office,2023-12-05,11 SERVICES,SERVICES,FLYFORM LTD,486233,5472.09,237333808
BEIS,Met Office,2023-12-13,11 SERVICES,SERVICES,GAMMA TELECOM LTD,486612,4482.15,823820344
BEIS,Met Office,2023-12-06,STOCK,SERVICES,GH ZEAL LTD,485216,0,648929087
BEIS,Met Office,2023-12-06,11 SERVICES,SERVICES,GH ZEAL LTD,485216,17.5,648929087
BEIS,Met Office,2023-12-06,TRADE CREDITORS,SERVICES,GH ZEAL LTD,485216,5841,648929087
BEIS,Met Office,2023-12-07,03 STAFF COSTS T&S,SERVICES,HCR LTD,486374,75,733 7205 46
BEIS,Met Office,2023-12-07,03 STAFF COSTS T&S,SERVICES,HCR LTD,486375,425,733 7205 46
BEIS,Met Office,2023-12-21,03 STAFF COSTS T&S,SERVICES,HCR LTD,487014,448.78,733 7205 46
BEIS,Met Office,2023-12-07,03 STAFF COSTS T&S,SERVICES,HCR LTD,486373,500,733 7205 46
BEIS,Met Office,2023-12-21,03 STAFF COSTS T&S,SERVICES,HCR LTD,487016,1411.3,733 7205 46
BEIS,Met Office,2023-12-11,03 STAFF COSTS T&S,SERVICES,HCR LTD,486565,2850,733 7205 46
BEIS,Met Office,2023-12-06,03 STAFF COSTS T&S,SERVICES,HCR LTD,486376,4700,733 7205 46
BEIS,Met Office,2023-12-21,03 STAFF COSTS T&S,SERVICES,HCR LTD,487015,14828.4,733 7205 46
BEIS,Met Office,2023-12-05,11 SERVICES,SERVICES,HITACHI CAPITAL VEHICLE SOLUTIONS,486280,1045.38,GB 823 8248 22
BEIS,Met Office,2023-12-19,13 MISCELLANEOUS,SERVICES,IMAGETEK SYSTEMS LTD,486920,2331,GB586331424
BEIS,Met Office,2023-12-05,11 SERVICES,SERVICES,INMARSAT SOLUTIONS (CANADA) INC,486277,43.27,766144223
BEIS,Met Office,2023-12-05,11 SERVICES,SERVICES,INMARSAT SOLUTIONS (CANADA) INC,486279,43.27,766144223
BEIS,Met Office,2023-12-05,11 SERVICES,SERVICES,INMARSAT SOLUTIONS (CANADA) INC,486276,86.54,766144223
BEIS,Met Office,2023-12-20,04 CONTRACTORS,SERVICES,INSTITUTO PORTUGUES DO MAR A DA ATMOSFERA,25400,16006.27,-
BEIS,Met Office,2023-12-06,07 EQUIPMENT,SERVICES,LEMO (UK) LTD,484756,17.5,193269240
BEIS,Met Office,2023-12-06,07 EQUIPMENT,SERVICES,LEMO (UK) LTD,484756,788.3,193269240
BEIS,Met Office,2023-12-18,03 STAFF COSTS T&S,SERVICES,LINCOLN POLYTHENE / HOBSON HOLDINGS,486805,270,267249279
BEIS,Met Office,2023-12-07,11 SERVICES,SERVICES,MADE TECH,486454,282010.71,938565184
BEIS,Met Office,2023-12-18,08 SOFTWARE LICENCES,SERVICES,MERKLE ONE,486619,8022.92,GB478022835
BEIS,Met Office,2023-12-20,07 EQUIPMENT,SERVICES,METOCEAN TELEMATICS LTD,11332,11.58,-
BEIS,Met Office,2023-12-18,11 SERVICES,SERVICES,NOC INNOVATIONS LIMITED,486047,192860,-
BEIS,Met Office,2023-12-20,11 SERVICES,SERVICES,NSSL GLOBAL LTD,11294,56.06,725151948
BEIS,Met Office,2023-12-20,11 SERVICES,SERVICES,NSSL GLOBAL LTD,11295,72.08,725151948
BEIS,Met Office,2023-12-14,07 EQUIPMENT,SERVICES,OTT HYDROMET,486652,234,737592693
BEIS,Met Office,2023-12-14,07 EQUIPMENT,SERVICES,OTT HYDROMET,486652,1110,737592693
BEIS,Met Office,2023-12-14,07 EQUIPMENT,SERVICES,OTT HYDROMET,486652,1860,737592693
BEIS,Met Office,2023-12-14,07 EQUIPMENT,SERVICES,OTT HYDROMET,486652,17400,737592693
BEIS,Met Office,2023-12-14,06 ACCOMMODATION,SERVICES,REDACTED � PERSONAL DATA,486661,4185.25,001874305
BEIS,Met Office,2023-12-21,13 MISCELLANEOUS,SERVICES,Royal Meteorological Society,486914,178.99,-
BEIS,Met Office,2023-12-07,11 SERVICES,SERVICES,Royal Meteorological Society,486465,7133.6,-
BEIS,Met Office,2023-12-21,13 MISCELLANEOUS,SERVICES,Royal Meteorological Society,486914,33547.67,-
BEIS,Met Office,2023-12-14,06 ACCOMMODATION,SERVICES,SAFESTORE LTD,486647,3430.33,722887607
BEIS,Met Office,2023-12-13,STOCK,SERVICES,SCIENCE PUMP CORPORATION,11341,0,NOVAT
BEIS,Met Office,2023-12-13,STOCK,SERVICES,SCIENCE PUMP CORPORATION,11342,0,NOVAT
BEIS,Met Office,2023-12-13,TRADE CREDITORS,SERVICES,SCIENCE PUMP CORPORATION,11341,4090.78,NOVAT
BEIS,Met Office,2023-12-13,TRADE CREDITORS,SERVICES,SCIENCE PUMP CORPORATION,11342,4090.78,NOVAT
BEIS,Met Office,2023-12-06,11 SERVICES,SERVICES,SOFTWIRE TECHNOLOGY LIMITED,486362,4200,752 1253 57
BEIS,Met Office,2023-12-07,11 SERVICES,SERVICES,SOUTH EAST LANDBASED TRAINING LLP,486319,716,383352293
BEIS,Met Office,2023-12-18,11 SERVICES,SERVICES,SOUTHAMPTON MARINE SERVICES,486654,25025,322078037
BEIS,Met Office,2023-12-20,13 MISCELLANEOUS,SERVICES,SPRINGER CUSTOMER SERVICE CENTER GMBH,25390,14625.78,209719094
BEIS,Met Office,2023-12-01,11 SERVICES,SERVICES,STAGE ENGAGE LTD,486181,167.5,GB120210593
BEIS,Met Office,2023-12-01,11 SERVICES,SERVICES,STAGE ENGAGE LTD,486181,1588,GB120210593
BEIS,Met Office,2023-12-01,11 SERVICES,SERVICES,STAGE ENGAGE LTD,486181,2254,GB120210593
BEIS,Met Office,2023-12-01,11 SERVICES,SERVICES,STAGE ENGAGE LTD,486181,3683.14,GB120210593
BEIS,Met Office,2023-12-21,03 STAFF COSTS T&S,SERVICES,STORAGE FACTORY,486978,185,130 5237 12
BEIS,Met Office,2023-12-21,10 EQUIPMENT MAINTENANCE,SERVICES,TRESCAL,487018,375,GB 115 1045 67
BEIS,Met Office,2023-12-21,07 EQUIPMENT,SERVICES,Vaisala Oyj,25369,1542.89,FI01244162
BEIS,Met Office,2023-12-21,07 EQUIPMENT,SERVICES,Vaisala Oyj,25369,6428.72,FI01244162
BEIS,Met Office,2023-12-21,07 EQUIPMENT,SERVICES,Vaisala Oyj,25368,8453.77,FI01244162
BEIS,Met Office,2023-12-21,07 EQUIPMENT,SERVICES,Vaisala Oyj,25388,19831.75,FI01244162
BEIS,Met Office,2023-12-21,07 EQUIPMENT,SERVICES,Vaisala Oyj,25368,35224.02,FI01244162
BEIS,Met Office,2023-12-12,11 SERVICES,SERVICES,VOLKSWAGEN GROUP LEASING,475439,-40,BG745963883
BEIS,Met Office,2023-12-18,STOCK,SERVICES,WINDSPEED LIMITED,486710,0,800755256
BEIS,Met Office,2023-12-18,STOCK,SERVICES,WINDSPEED LIMITED,486710,0,800755256
BEIS,Met Office,2023-12-18,11 SERVICES,SERVICES,WINDSPEED LIMITED,486710,32,800755256
BEIS,Met Office,2023-12-18,TRADE CREDITORS,SERVICES,WINDSPEED LIMITED,486710,564.3,800755256
BEIS,Met Office,2023-12-18,TRADE CREDITORS,SERVICES,WINDSPEED LIMITED,486710,2076.3,800755256
BEIS,Met Office,2023-12-14,13 MISCELLANEOUS,SERVICES,YOUNG CALIBRATION LIMITED,486771,15,673900720
BEIS,Met Office,2023-12-14,10 EQUIPMENT MAINTENANCE,SERVICES,YOUNG CALIBRATION LIMITED,486771,4500,673900720
BEIS,Met Office,2023-12-05,11 SERVICES,TECHNOLOGY AND CIO,AKAMAI TECHNOLOGIES LTD,486387,4937.28,745091237
BEIS,Met Office,2023-12-05,11 SERVICES,TECHNOLOGY AND CIO,AKAMAI TECHNOLOGIES LTD,486387,25920.75,745091237
BEIS,Met Office,2023-12-06,11 SERVICES,TECHNOLOGY AND CIO,AMAZON WEB SERVICES EMEA SARL,11270,859.28,GB 283644382
BEIS,Met Office,2023-12-21,11 SERVICES,TECHNOLOGY AND CIO,ARDOQ UK LIMITED,487023,6000,GB 307689963
BEIS,Met Office,2023-12-18,11 SERVICES,TECHNOLOGY AND CIO,BAE SYSTEMS APPLIED INTELLIGENCE LIMITED,486050,230.12,GB641407169
BEIS,Met Office,2023-12-18,11 SERVICES,TECHNOLOGY AND CIO,BAE SYSTEMS APPLIED INTELLIGENCE LIMITED,485894,524.19,GB641407169
BEIS,Met Office,2023-12-18,11 SERVICES,TECHNOLOGY AND CIO,BAE SYSTEMS APPLIED INTELLIGENCE LIMITED,486051,525.42,GB641407169
BEIS,Met Office,2023-12-18,11 SERVICES,TECHNOLOGY AND CIO,BAE SYSTEMS APPLIED INTELLIGENCE LIMITED,485899,1466.78,GB641407169
BEIS,Met Office,2023-12-19,11 SERVICES,TECHNOLOGY AND CIO,BAE SYSTEMS APPLIED INTELLIGENCE LIMITED,486823,4387.5,GB641407169
BEIS,Met Office,2023-12-19,11 SERVICES,TECHNOLOGY AND CIO,BAE SYSTEMS APPLIED INTELLIGENCE LIMITED,486822,5400,GB641407169
BEIS,Met Office,2023-12-19,11 SERVICES,TECHNOLOGY AND CIO,BAE SYSTEMS APPLIED INTELLIGENCE LIMITED,486821,7504,GB641407169
BEIS,Met Office,2023-12-19,11 SERVICES,TECHNOLOGY AND CIO,BAE SYSTEMS APPLIED INTELLIGENCE LIMITED,486832,8212.5,GB641407169
BEIS,Met Office,2023-12-19,11 SERVICES,TECHNOLOGY AND CIO,BAE SYSTEMS APPLIED INTELLIGENCE LIMITED,486839,8656,GB641407169
BEIS,Met Office,2023-12-19,11 SERVICES,TECHNOLOGY AND CIO,BAE SYSTEMS APPLIED INTELLIGENCE LIMITED,486837,8662.5,GB641407169
BEIS,Met Office,2023-12-19,11 SERVICES,TECHNOLOGY AND CIO,BAE SYSTEMS APPLIED INTELLIGENCE LIMITED,486824,8943.75,GB641407169
BEIS,Met Office,2023-12-19,11 SERVICES,TECHNOLOGY AND CIO,BAE SYSTEMS APPLIED INTELLIGENCE LIMITED,486830,9000,GB641407169
BEIS,Met Office,2023-12-19,11 SERVICES,TECHNOLOGY AND CIO,BAE SYSTEMS APPLIED INTELLIGENCE LIMITED,486834,9738,GB641407169
BEIS,Met Office,2023-12-19,11 SERVICES,TECHNOLOGY AND CIO,BAE SYSTEMS APPLIED INTELLIGENCE LIMITED,486841,10229.9,GB641407169
BEIS,Met Office,2023-12-19,11 SERVICES,TECHNOLOGY AND CIO,BAE SYSTEMS APPLIED INTELLIGENCE LIMITED,486843,10230,GB641407169
BEIS,Met Office,2023-12-19,11 SERVICES,TECHNOLOGY AND CIO,BAE SYSTEMS APPLIED INTELLIGENCE LIMITED,486842,10279,GB641407169
BEIS,Met Office,2023-12-19,11 SERVICES,TECHNOLOGY AND CIO,BAE SYSTEMS APPLIED INTELLIGENCE LIMITED,486835,10820,GB641407169
BEIS,Met Office,2023-12-19,11 SERVICES,TECHNOLOGY AND CIO,BAE SYSTEMS APPLIED INTELLIGENCE LIMITED,486844,11550,GB641407169
BEIS,Met Office,2023-12-19,11 SERVICES,TECHNOLOGY AND CIO,BAE SYSTEMS APPLIED INTELLIGENCE LIMITED,486840,12540,GB641407169
BEIS,Met Office,2023-12-08,11 SERVICES,TECHNOLOGY AND CIO,BAE SYSTEMS APPLIED INTELLIGENCE LIMITED,486563,13199.87,GB641407169
BEIS,Met Office,2023-12-19,11 SERVICES,TECHNOLOGY AND CIO,BAE SYSTEMS APPLIED INTELLIGENCE LIMITED,486831,13200,GB641407169
BEIS,Met Office,2023-12-19,11 SERVICES,TECHNOLOGY AND CIO,BAE SYSTEMS APPLIED INTELLIGENCE LIMITED,486838,13200,GB641407169
BEIS,Met Office,2023-12-19,11 SERVICES,TECHNOLOGY AND CIO,BAE SYSTEMS APPLIED INTELLIGENCE LIMITED,486836,13387.5,GB641407169
BEIS,Met Office,2023-12-19,11 SERVICES,TECHNOLOGY AND CIO,BAE SYSTEMS APPLIED INTELLIGENCE LIMITED,486825,15946,GB641407169
BEIS,Met Office,2023-12-19,11 SERVICES,TECHNOLOGY AND CIO,BAE SYSTEMS APPLIED INTELLIGENCE LIMITED,486833,16180.5,GB641407169
BEIS,Met Office,2023-12-19,11 SERVICES,TECHNOLOGY AND CIO,BAE SYSTEMS APPLIED INTELLIGENCE LIMITED,486819,17822,GB641407169
BEIS,Met Office,2023-12-19,11 SERVICES,TECHNOLOGY AND CIO,BAE SYSTEMS APPLIED INTELLIGENCE LIMITED,486850,17822,GB641407169
BEIS,Met Office,2023-12-19,11 SERVICES,TECHNOLOGY AND CIO,BAE SYSTEMS APPLIED INTELLIGENCE LIMITED,486820,17939.25,GB641407169
BEIS,Met Office,2023-12-19,11 SERVICES,TECHNOLOGY AND CIO,BJSS LIMITED,486845,-14056,613295452
BEIS,Met Office,2023-12-11,11 SERVICES,TECHNOLOGY AND CIO,BJSS LIMITED,486543,13125,613295452
BEIS,Met Office,2023-12-19,11 SERVICES,TECHNOLOGY AND CIO,BJSS LIMITED,486544,80495.5,613295452
BEIS,Met Office,2023-12-04,08 SOFTWARE LICENCES,TECHNOLOGY AND CIO,BOXXE,486182,26948.47,734245248
BEIS,Met Office,2023-12-08,08 SOFTWARE LICENCES,TECHNOLOGY AND CIO,BOXXE,486542,55004.79,734245248
BEIS,Met Office,2023-12-18,13 MISCELLANEOUS,TECHNOLOGY AND CIO,BSI STANDARDS,486886,2510,243457071
BEIS,Met Office,2023-12-12,11 SERVICES,TECHNOLOGY AND CIO,CLOUDREACH EUROPE LIMITED,486646,3620.13,978187168
BEIS,Met Office,2023-12-12,11 SERVICES,TECHNOLOGY AND CIO,CLOUDREACH EUROPE LIMITED,486691,5150,978187168
BEIS,Met Office,2023-12-07,INFORMATION TECHNOLOGY,TECHNOLOGY AND CIO,COMPUTACENTER (UK) LTD,486460,606.9,490334648
BEIS,Met Office,2023-12-04,10 EQUIPMENT MAINTENANCE,TECHNOLOGY AND CIO,COMPUTACENTER (UK) LTD,486228,5477.78,490334648
BEIS,Met Office,2023-12-12,08 SOFTWARE LICENCES,TECHNOLOGY AND CIO,COMPUTACENTER (UK) LTD,486705,12640,490334648
BEIS,Met Office,2023-12-19,INFORMATION TECHNOLOGY,TECHNOLOGY AND CIO,COMPUTACENTER (UK) LTD,486459,110217.68,490334648
BEIS,Met Office,2023-12-04,INFORMATION TECHNOLOGY,TECHNOLOGY AND CIO,COMPUTACENTER (UK) LTD,486217,240971.62,490334648
BEIS,Met Office,2023-12-04,11 SERVICES,TECHNOLOGY AND CIO,FLYFORM LTD,486234,2985,237333808
BEIS,Met Office,2023-12-14,08 SOFTWARE LICENCES,TECHNOLOGY AND CIO,FORGEROCK LTD,486807,144937.07,988863532
BEIS,Met Office,2023-12-06,08 SOFTWARE LICENCES,TECHNOLOGY AND CIO,GOOGLE IRELAND LTD,486267,59.81,6388047V
BEIS,Met Office,2023-12-14,08 SOFTWARE LICENCES,TECHNOLOGY AND CIO,Grey Matter Ltd,486708,6231.39,384904621
BEIS,Met Office,2023-12-04,08 SOFTWARE LICENCES,TECHNOLOGY AND CIO,Ibm United Kingdom Ltd,486275,7300.9,107328000
BEIS,Met Office,2023-12-06,11 SERVICES,TECHNOLOGY AND CIO,Ibm United Kingdom Ltd,486326,13440.5,107328000
BEIS,Met Office,2023-12-04,07 EQUIPMENT,TECHNOLOGY AND CIO,INSURGO MEDIA SERVICES LTD,486226,2860,979682734
BEIS,Met Office,2023-12-12,07 EQUIPMENT,TECHNOLOGY AND CIO,INSURGO MEDIA SERVICES LTD,486660,9347.1,979682734
BEIS,Met Office,2023-12-12,08 SOFTWARE LICENCES,TECHNOLOGY AND CIO,iomart Group,486561,35490,751537235
BEIS,Met Office,2023-12-12,08 SOFTWARE LICENCES,TECHNOLOGY AND CIO,iomart Group,486562,47999.08,751537235
BEIS,Met Office,2023-12-11,11 SERVICES,TECHNOLOGY AND CIO,LAFOSSE ASSOCIATES,486552,24002.16,GB 360026537
BEIS,Met Office,2023-12-13,08 SOFTWARE LICENCES,TECHNOLOGY AND CIO,LOOP1 UK LIMITED,486754,7065.9,02631536
BEIS,Met Office,2023-12-06,08 SOFTWARE LICENCES,TECHNOLOGY AND CIO,Microsoft Ltd,486365,82194,724594615
BEIS,Met Office,2023-12-18,11 SERVICES,TECHNOLOGY AND CIO,NTT DATA UK LTD,486876,37828,159334590
BEIS,Met Office,2023-12-13,08 SOFTWARE LICENCES,TECHNOLOGY AND CIO,Presentation Cartography Ltd,486541,42.97,-
BEIS,Met Office,2023-12-13,08 SOFTWARE LICENCES,TECHNOLOGY AND CIO,Presentation Cartography Ltd,486541,268.58,-
BEIS,Met Office,2023-12-13,08 SOFTWARE LICENCES,TECHNOLOGY AND CIO,Presentation Cartography Ltd,486541,1074.32,-
BEIS,Met Office,2023-12-13,11 SERVICES,TECHNOLOGY AND CIO,QA LTD,486451,-150,864455303
BEIS,Met Office,2023-12-11,11 SERVICES,TECHNOLOGY AND CIO,QA LTD,486527,3900,864455303
BEIS,Met Office,2023-12-14,11 SERVICES,TECHNOLOGY AND CIO,QA LTD,486683,4500,864455303
BEIS,Met Office,2023-12-13,11 SERVICES,TECHNOLOGY AND CIO,QA LTD,485780,4840,864455303
BEIS,Met Office,2023-12-11,11 SERVICES,TECHNOLOGY AND CIO,QA LTD,486534,5360,864455303
BEIS,Met Office,2023-12-11,11 SERVICES,TECHNOLOGY AND CIO,QA LTD,486528,5400,864455303
BEIS,Met Office,2023-12-11,11 SERVICES,TECHNOLOGY AND CIO,QA LTD,486532,5400,864455303
BEIS,Met Office,2023-12-14,11 SERVICES,TECHNOLOGY AND CIO,QA LTD,486813,6600,864455303
BEIS,Met Office,2023-12-11,11 SERVICES,TECHNOLOGY AND CIO,QA LTD,486533,12900,864455303
BEIS,Met Office,2023-12-14,11 SERVICES,TECHNOLOGY AND CIO,QA LTD,486682,12900,864455303
BEIS,Met Office,2023-12-13,11 SERVICES,TECHNOLOGY AND CIO,QA LTD,486118,29070,864455303
BEIS,Met Office,2023-12-08,11 SERVICES,TECHNOLOGY AND CIO,SSE CONTRACTING LTD,486462,8142.3,382894546
BEIS,Met Office,2023-12-05,11 SERVICES,TECHNOLOGY AND CIO,WIREFAST LTD,486293,585.56,749536001
BEIS,Met Office,2023-12-05,11 SERVICES,TECHNOLOGY AND CIO,WIREFAST LTD,486292,1331.9,749536001
BEIS,Met Office,2023-12-05,11 SERVICES,TECHNOLOGY AND CIO,WIREFAST LTD,486294,1396.12,749536001
BEIS,Met Office,2023-12-07,11 SERVICES,TECHNOLOGY AND CIO,WT CONSULTANCY (SW) LTD,486369,350,223 4662 25
BEIS,Met Office,,,,,,,
BEIS,Met Office,,,,,,,
BEIS,Met Office,,,,,,,
BEIS,Met Office,,,,,,,
BEIS,Met Office,,,,,,,
BEIS,Met Office,,,,,,,
BEIS,Met Office,,,,,,,
BEIS,Met Office,,,,,,,
BEIS,Met Office,,,,,,,
BEIS,Met Office,,,,,,,
BEIS,Met Office,,,,,,,
BEIS,Met Office,,,,,,,
BEIS,Met Office,,,,,,,
BEIS,Met Office,,,,,,,
BEIS,Met Office,,,,,,,
BEIS,Met Office,,,,,,,
BEIS,Met Office,,,,,,,
BEIS,Met Office,,,,,,,
BEIS,Met Office,,,,,,,
BEIS,Met Office,,,,,,,
BEIS,Met Office,,,,,,,
BEIS,Met Office,,,,,,,
BEIS,Met Office,,,,,,,
BEIS,Met Office,,,,,,,
BEIS,Met Office,,,,,,,
BEIS,Met Office,,,,,,,
BEIS,Met Office,,,,,,,
BEIS,Met Office,,,,,,,
BEIS,Met Office,,,,,,,
BEIS,Met Office,,,,,,,
BEIS,Met Office,,,,,,,
BEIS,Met Office,,,,,,,
BEIS,Met Office,,,,,,,
BEIS,Met Office,,,,,,,
BEIS,Met Office,,,,,,,
BEIS,Met Office,,,,,,,
BEIS,Met Office,,,,,,,
BEIS,Met Office,,,,,,,
BEIS,Met Office,,,,,,,
BEIS,Met Office,,,,,,,
BEIS,Met Office,,,,,,,
BEIS,Met Office,,,,,,,
BEIS,Met Office,,,,,,,
BEIS,Met Office,,,,,,,
BEIS,Met Office,,,,,,,
BEIS,Met Office,,,,,,,
BEIS,Met Office,,,,,,,
BEIS,Met Office,,,,,,,
BEIS,Met Office,,,,,,,
BEIS,Met Office,,,,,,,
BEIS,Met Office,,,,,,,
BEIS,Met Office,,,,,,,
BEIS,Met Office,,,,,,,
BEIS,Met Office,,,,,,,
BEIS,Met Office,,,,,,,
BEIS,Met Office,,,,,,,
BEIS,Met Office,,,,,,,
BEIS,Met Office,,,,,,,
BEIS,Met Office,,,,,,,
BEIS,Met Office,,,,,,,
BEIS,Met Office,,,,,,,
BEIS,Met Office,,,,,,,
BEIS,Met Office,,,,,,,
BEIS,Met Office,,,,,,,
BEIS,Met Office,,,,,,,
BEIS,Met Office,,,,,,,
BEIS,Met Office,,,,,,,
BEIS,Met Office,,,,,,,
BEIS,Met Office,,,,,,,
BEIS,Met Office,,,,,,,
BEIS,Met Office,,,,,,,
BEIS,Met Office,,,,,,,
BEIS,Met Office,,,,,,,
BEIS,Met Office,,,,,,,
BEIS,Met Office,,,,,,,
BEIS,Met Office,,,,,,,
BEIS,Met Office,,,,,,,
BEIS,Met Office,,,,,,,
BEIS,Met Office,,,,,,,
BEIS,Met Office,,,,,,,
BEIS,Met Office,,,,,,,
BEIS,Met Office,,,,,,,
BEIS,Met Office,,,,,,,
BEIS,Met Office,,,,,,,
BEIS,Met Office,,,,,,,
BEIS,Met Office,,,,,,,
BEIS,Met Office,,,,,,,
BEIS,Met Office,,,,,,,
BEIS,Met Office,,,,,,,
BEIS,Met Office,,,,,,,
BEIS,Met Office,,,,,,,
BEIS,Met Office,,,,,,,
BEIS,Met Office,,,,,,,
BEIS,Met Office,,,,,,,
BEIS,Met Office,,,,,,,
BEIS,Met Office,,,,,,,
BEIS,Met Office,,,,,,,
BEIS,Met Office,,,,,,,
BEIS,Met Office,,,,,,,
BEIS,Met Office,,,,,,,
BEIS,Met Office,,,,,,,
BEIS,Met Office,,,,,,,
BEIS,Met Office,,,,,,,
BEIS,Met Office,,,,,,,
BEIS,Met Office,,,,,,,
BEIS,Met Office,,,,,,,
BEIS,Met Office,,,,,,,
BEIS,Met Office,,,,,,,
BEIS,Met Office,,,,,,,
BEIS,Met Office,,,,,,,
BEIS,Met Office,,,,,,,
BEIS,Met Office,,,,,,,
BEIS,Met Office,,,,,,,
BEIS,Met Office,,,,,,,
BEIS,Met Office,,,,,,,
BEIS,Met Office,,,,,,,
BEIS,Met Office,,,,,,,
BEIS,Met Office,,,,,,,
BEIS,Met Office,,,,,,,
BEIS,Met Office,,,,,,,
BEIS,Met Office,,,,,,,
BEIS,Met Office,,,,,,,
BEIS,Met Office,,,,,,,
BEIS,Met Office,,,,,,,
BEIS,Met Office,,,,,,,
BEIS,Met Office,,,,,,,
BEIS,Met Office,,,,,,,
BEIS,Met Office,,,,,,,
BEIS,Met Office,,,,,,,
BEIS,Met Office,,,,,,,
BEIS,Met Office,,,,,,,
BEIS,Met Office,,,,,,,
BEIS,Met Office,,,,,,,
BEIS,Met Office,,,,,,,
BEIS,Met Office,,,,,,,
BEIS,Met Office,,,,,,,
BEIS,Met Office,,,,,,,
BEIS,Met Office,,,,,,,
BEIS,Met Office,,,,,,,
BEIS,Met Office,,,,,,,
BEIS,Met Office,,,,,,,
BEIS,Met Office,,,,,,,
BEIS,Met Office,,,,,,,
BEIS,Met Office,,,,,,,
BEIS,Met Office,,,,,,,
BEIS,Met Office,,,,,,,
BEIS,Met Office,,,,,,,
BEIS,Met Office,,,,,,,
BEIS,Met Office,,,,,,,
BEIS,Met Office,,,,,,,
BEIS,Met Office,,,,,,,
BEIS,Met Office,,,,,,,
BEIS,Met Office,,,,,,,
BEIS,Met Office,,,,,,,
BEIS,Met Office,,,,,,,
BEIS,Met Office,,,,,,,
BEIS,Met Office,,,,,,,
BEIS,Met Office,,,,,,,
BEIS,Met Office,,,,,,,
BEIS,Met Office,,,,,,,
BEIS,Met Office,,,,,,,
BEIS,Met Office,,,,,,,
BEIS,Met Office,,,,,,,
BEIS,Met Office,,,,,,,
BEIS,Met Office,,,,,,,
BEIS,Met Office,,,,,,,
BEIS,Met Office,,,,,,,
BEIS,Met Office,,,,,,,
BEIS,Met Office,,,,,,,
BEIS,Met Office,,,,,,,
BEIS,Met Office,,,,,,,
BEIS,Met Office,,,,,,,
BEIS,Met Office,,,,,,,
BEIS,Met Office,,,,,,,
BEIS,Met Office,,,,,,,
BEIS,Met Office,,,,,,,
BEIS,Met Office,,,,,,,
BEIS,Met Office,,,,,,,
BEIS,Met Office,,,,,,,
BEIS,Met Office,,,,,,,
BEIS,Met Office,,,,,,,
BEIS,Met Office,,,,,,,
BEIS,Met Office,,,,,,,
BEIS,Met Office,,,,,,,
BEIS,Met Office,,,,,,,
BEIS,Met Office,,,,,,,
BEIS,Met Office,,,,,,,
BEIS,Met Office,,,,,,,
BEIS,Met Office,,,,,,,
BEIS,Met Office,,,,,,,
BEIS,Met Office,,,,,,,
BEIS,Met Office,,,,,,,
BEIS,Met Office,,,,,,,
BEIS,Met Office,,,,,,,
BEIS,Met Office,,,,,,,
BEIS,Met Office,,,,,,,
BEIS,Met Office,,,,,,,
BEIS,Met Office,,,,,,,
BEIS,Met Office,,,,,,,
BEIS,Met Office,,,,,,,
BEIS,Met Office,,,,,,,
BEIS,Met Office,,,,,,,
BEIS,Met Office,,,,,,,
BEIS,Met Office,,,,,,,
BEIS,Met Office,,,,,,,
BEIS,Met Office,,,,,,,
BEIS,Met Office,,,,,,,
BEIS,Met Office,,,,,,,
BEIS,Met Office,,,,,,,
BEIS,Met Office,,,,,,,
BEIS,Met Office,,,,,,,
BEIS,Met Office,,,,,,,
BEIS,Met Office,,,,,,,
BEIS,Met Office,,,,,,,
BEIS,Met Office,,,,,,,
BEIS,Met Office,,,,,,,
BEIS,Met Office,,,,,,,
